[Event "*** MasterClass Titled Tuesday Blitz"]
[Site "Chess.com"]
[Date "2017.09.05"]
[Round "2"]
[White "GM_dmitrij"]
[Black "IamSchrodingersCat"]
[Result "0-1"]
[WhiteElo "2633"]
[BlackElo "2432"]
[TimeControl "180+2"]
[EndTime "13:22:12 PDT"]
[Termination "IamSchrodingersCat won by resignation"]

1. e4 {[%clk 0:03:01.9]} 1... c5 {[%clk 0:02:59.8]} 2. Nf3 {[%clk 0:03:01.8]}
2... d6 {[%clk 0:02:59.8]} 3. d4 {[%clk 0:03:03.4]} 3... cxd4 {[%clk 0:03:01.7]}
4. Nxd4 {[%clk 0:03:04.7]} 4... Nf6 {[%clk 0:03:01.4]} 5. Nc3 {[%clk 0:03:06.2]}
5... g6 {[%clk 0:03:02.5]} 6. Be3 {[%clk 0:03:06.9]} 6... Bg7 {[%clk 0:03:03.4]}
7. f3 {[%clk 0:03:08.5]} 7... O-O {[%clk 0:03:04.6]} 8. Qd2 {[%clk 0:03:10.1]}
8... Nc6 {[%clk 0:03:05.8]} 9. Bc4 {[%clk 0:03:11.8]} 9... Bd7 {[%clk
0:03:06.1]} 10. O-O-O {[%clk 0:03:13.4]} 10... Rb8 {[%clk 0:03:07.1]} 11. Bb3
{[%clk 0:03:08.6]} 11... a5 {[%clk 0:03:07.4]} 12. a4 {[%clk 0:03:05.4]} 12...
Nxd4 {[%clk 0:03:06.6]} 13. Bxd4 {[%clk 0:03:07.3]} 13... b5 {[%clk 0:03:08]}
14. axb5 {[%clk 0:03:03.4]} 14... Bxb5 {[%clk 0:03:09.9]} 15. e5 {[%clk
0:02:51.3]} 15... dxe5 {[%clk 0:03:01]} 16. Bxe5 {[%clk 0:02:53.2]} 16... Qxd2+
{[%clk 0:03:01.8]} 17. Rxd2 {[%clk 0:02:50.8]} 17... Rb7 {[%clk 0:03:03.6]} 18.
Kb1 {[%clk 0:02:33.8]} 18... Ne4 {[%clk 0:02:52.6]} 19. Nxe4 {[%clk 0:01:50.6]}
19... Bxe5 {[%clk 0:02:51.2]} 20. Rd5 {[%clk 0:01:49.2]} 20... Bg7 {[%clk
0:02:42.1]} 21. Nc5 {[%clk 0:01:50.9]} 21... Rbb8 {[%clk 0:02:31.9]} 22. Nd7
{[%clk 0:01:21.5]} 22... Bxd7 {[%clk 0:02:31.9]} 23. Rxd7 {[%clk 0:01:24.3]}
23... a4 {[%clk 0:02:20.4]} 24. Bc4 {[%clk 0:01:00.3]} 24... Rxb2+ {[%clk
0:02:16.5]} 25. Kc1 {[%clk 0:01:01.6]} 25... a3 {[%clk 0:01:55]} 26. Kd2 {[%clk
0:00:48.2]} 26... Rc8 {[%clk 0:01:46.2]} 27. Bd3 {[%clk 0:00:33.3]} 27... Ra8
{[%clk 0:01:37.6]} 28. Ra1 {[%clk 0:00:29.7]} 28... Rxc2+ {[%clk 0:00:53.7]} 29.
Kxc2 {[%clk 0:00:26.7]} 29... Bxa1 {[%clk 0:00:55.6]} 30. Kb3 {[%clk 0:00:26]}
30... a2 {[%clk 0:00:42.7]} 31. Be4 {[%clk 0:00:19.1]} 31... Bf6 {[%clk
0:00:38.7]} 32. Rd1 {[%clk 0:00:20.7]} 32... a1=Q {[%clk 0:00:39.2]} 33. Rxa1
{[%clk 0:00:23]} 33... Rxa1 {[%clk 0:00:40.2]} 0-1

[Event "*** MasterClass Titled Tuesday Blitz"]
[Site "Chess.com"]
[Date "2017.09.05"]
[Round "2"]
[White "W_Amadeus"]
[Black "manubibi"]
[Result "1-0"]
[WhiteElo "2384"]
[BlackElo "2423"]
[TimeControl "180+2"]
[EndTime "13:22:16 PDT"]
[Termination "W_Amadeus won by resignation"]

1. d4 {[%clk 0:03:01.9]} 1... Nf6 {[%clk 0:03:00.2]} 2. c4 {[%clk 0:03:02.7]}
2... g6 {[%clk 0:03:01.3]} 3. Nc3 {[%clk 0:03:03.9]} 3... Bg7 {[%clk 0:03:02.3]}
4. e4 {[%clk 0:03:04.7]} 4... d6 {[%clk 0:03:03.3]} 5. Nf3 {[%clk 0:03:06.1]}
5... O-O {[%clk 0:03:04.6]} 6. Be2 {[%clk 0:03:07.5]} 6... e5 {[%clk 0:03:04.8]}
7. O-O {[%clk 0:03:08.4]} 7... Na6 {[%clk 0:03:05]} 8. Be3 {[%clk 0:03:07.9]}
8... Ng4 {[%clk 0:03:05]} 9. Bg5 {[%clk 0:03:08.9]} 9... f6 {[%clk 0:03:06.1]}
10. Bd2 {[%clk 0:02:29.2]} 10... exd4 {[%clk 0:02:42.5]} 11. Nxd4 {[%clk
0:02:29.7]} 11... f5 {[%clk 0:02:42.6]} 12. exf5 {[%clk 0:01:50.6]} 12... Nxf2
{[%clk 0:02:38.3]} 13. Rxf2 {[%clk 0:01:33.3]} 13... Bxd4 {[%clk 0:02:36.8]} 14.
Ne4 {[%clk 0:01:14.4]} 14... Bxf5 {[%clk 0:02:25.1]} 15. Bc3 {[%clk 0:00:59.2]}
15... Bxf2+ {[%clk 0:01:13.4]} 16. Nxf2 {[%clk 0:00:59.6]} 16... Re8 {[%clk
0:01:02]} 17. c5 {[%clk 0:00:36.4]} 17... dxc5 {[%clk 0:00:25]} 18. Bc4+ {[%clk
0:00:15.1]} 18... Be6 {[%clk 0:00:25.9]} 19. Qb3 {[%clk 0:00:15.9]} 19... Qd7
{[%clk 0:00:25.1]} 20. Re1 {[%clk 0:00:16.7]} 20... Bxc4 {[%clk 0:00:24.4]} 21.
Qxc4+ {[%clk 0:00:18.6]} 21... Qf7 {[%clk 0:00:25.2]} 22. Qf1 {[%clk 0:00:15.5]}
22... Rxe1 {[%clk 0:00:25.4]} 23. Qxe1 {[%clk 0:00:17]} 23... Re8 {[%clk
0:00:25.7]} 24. Qd1 {[%clk 0:00:18.1]} 24... Nb4 {[%clk 0:00:25]} 25. Ng4 {[%clk
0:00:18.8]} 25... Qf5 {[%clk 0:00:14.5]} 26. Nh6+ {[%clk 0:00:19.3]} 26... Kf8
{[%clk 0:00:15]} 27. Nxf5 {[%clk 0:00:21.2]} 27... gxf5 {[%clk 0:00:16.2]} 28.
Qf3 {[%clk 0:00:18.1]} 1-0

[Event "*** MasterClass Titled Tuesday Blitz"]
[Site "Chess.com"]
[Date "2017.09.05"]
[Round "2"]
[White "stefanodinn"]
[Black "Blitzking4444"]
[Result "1/2-1/2"]
[WhiteElo "2194"]
[BlackElo "2077"]
[TimeControl "180+2"]
[EndTime "13:22:21 PDT"]
[Termination "Game drawn by repetition"]

1. e4 {[%clk 0:03:01.9]} 1... e6 {[%clk 0:03:00.8]} 2. d4 {[%clk 0:03:02.2]}
2... d5 {[%clk 0:03:01.5]} 3. Nd2 {[%clk 0:03:02.2]} 3... Be7 {[%clk 0:03:02.3]}
4. c3 {[%clk 0:03:01.4]} 4... c5 {[%clk 0:03:02.6]} 5. exd5 {[%clk 0:03:01.4]}
5... exd5 {[%clk 0:03:01.4]} 6. Ngf3 {[%clk 0:03:01.5]} 6... Nf6 {[%clk
0:03:01.3]} 7. Bb5+ {[%clk 0:02:52.6]} 7... Nc6 {[%clk 0:02:59.9]} 8. dxc5
{[%clk 0:02:51.8]} 8... Bxc5 {[%clk 0:02:43.6]} 9. Qe2+ {[%clk 0:02:48.1]} 9...
Be6 {[%clk 0:02:43.9]} 10. Nb3 {[%clk 0:02:48.1]} 10... Bb6 {[%clk 0:02:33.7]}
11. Nbd4 {[%clk 0:02:44.9]} 11... O-O {[%clk 0:02:32.5]} 12. Nxe6 {[%clk
0:02:34.3]} 12... fxe6 {[%clk 0:02:34.4]} 13. Qxe6+ {[%clk 0:02:34.4]} 13... Kh8
{[%clk 0:02:35.9]} 14. O-O {[%clk 0:02:34.9]} 14... Ne4 {[%clk 0:02:18.7]} 15.
Bxc6 {[%clk 0:01:59.5]} 15... bxc6 {[%clk 0:02:19.9]} 16. Qg4 {[%clk 0:01:58.4]}
16... Bxf2+ {[%clk 0:01:15.3]} 17. Rxf2 {[%clk 0:01:24.3]} 17... Qb6 {[%clk
0:01:15.5]} 18. Qh4 {[%clk 0:01:22]} 18... g5 {[%clk 0:00:37.5]} 19. Bxg5 {[%clk
0:00:43.2]} 19... Rf5 {[%clk 0:00:25.1]} 20. Bh6 {[%clk 0:00:27.7]} 20... Rg8
{[%clk 0:00:19.5]} 21. Bf4 {[%clk 0:00:06.7]} 21... Nxf2 {[%clk 0:00:16]} 22.
Be5+ {[%clk 0:00:05.4]} 22... Rxe5 {[%clk 0:00:12.9]} 23. Qf6+ {[%clk
0:00:06.3]} 23... Rg7 {[%clk 0:00:12.8]} 24. Qf8+ {[%clk 0:00:06.9]} 24... Rg8
{[%clk 0:00:13.5]} 25. Qf6+ {[%clk 0:00:07.8]} 25... Rg7 {[%clk 0:00:14.9]} 26.
Qf8+ {[%clk 0:00:05.8]} 26... Rg8 {[%clk 0:00:16.1]} 27. Qf6+ {[%clk 0:00:05.6]}
27... Rg7 {[%clk 0:00:17.1]} 1/2-1/2

[Event "*** MasterClass Titled Tuesday Blitz"]
[Site "Chess.com"]
[Date "2017.09.05"]
[Round "2"]
[White "MartinMatthiesen"]
[Black "djogrodek1"]
[Result "1-0"]
[WhiteElo "2308"]
[BlackElo "2428"]
[TimeControl "180+2"]
[EndTime "13:22:56 PDT"]
[Termination "MartinMatthiesen won by resignation"]

1. d4 {[%clk 0:03:01.9]} 1... d5 {[%clk 0:02:58.3]} 2. Bf4 {[%clk 0:03:01.8]}
2... Nf6 {[%clk 0:02:58.9]} 3. e3 {[%clk 0:03:02.9]} 3... c5 {[%clk 0:03:00.4]}
4. dxc5 {[%clk 0:03:03.4]} 4... Nc6 {[%clk 0:02:59.6]} 5. Bb5 {[%clk 0:03:03.1]}
5... e6 {[%clk 0:02:41.1]} 6. b4 {[%clk 0:03:01.5]} 6... a5 {[%clk 0:02:42.5]}
7. c3 {[%clk 0:03:02]} 7... Bd7 {[%clk 0:02:41.9]} 8. Ne2 {[%clk 0:02:57.5]}
8... axb4 {[%clk 0:02:38.8]} 9. Bxc6 {[%clk 0:02:57.6]} 9... Bxc6 {[%clk
0:02:41.1]} 10. cxb4 {[%clk 0:02:58.8]} 10... b6 {[%clk 0:02:40.6]} 11. O-O
{[%clk 0:02:01.6]} 11... bxc5 {[%clk 0:02:40.2]} 12. bxc5 {[%clk 0:02:02.1]}
12... Bxc5 {[%clk 0:02:41]} 13. Qc2 {[%clk 0:01:54.4]} 13... Nd7 {[%clk
0:02:34.6]} 14. a4 {[%clk 0:01:08.8]} 14... O-O {[%clk 0:02:34.7]} 15. Nbc3
{[%clk 0:01:08.9]} 15... Qa5 {[%clk 0:02:30.9]} 16. Rfb1 {[%clk 0:01:04.7]}
16... Rfc8 {[%clk 0:02:31.3]} 17. Nd4 {[%clk 0:00:46.3]} 17... e5 {[%clk
0:01:55.5]} 18. Nxc6 {[%clk 0:00:45.8]} 18... Rxc6 {[%clk 0:01:57.4]} 19. Nxd5
{[%clk 0:00:36.9]} 19... Rac8 {[%clk 0:00:21.9]} 20. Bg3 {[%clk 0:00:36.5]}
20... Kh8 {[%clk 0:00:20.4]} 21. Qe4 {[%clk 0:00:36.3]} 21... Bd6 {[%clk
0:00:15.3]} 22. h4 {[%clk 0:00:36.1]} 22... Nc5 {[%clk 0:00:14.9]} 23. Qf5
{[%clk 0:00:35.7]} 23... Ne6 {[%clk 0:00:14]} 24. e4 {[%clk 0:00:31.4]} 24...
Nd4 {[%clk 0:00:14.3]} 25. Qxf7 {[%clk 0:00:32.1]} 25... Ne2+ {[%clk 0:00:14.5]}
26. Kh2 {[%clk 0:00:32.5]} 26... Nxg3 {[%clk 0:00:16]} 27. fxg3 {[%clk
0:00:33.8]} 27... Rf8 {[%clk 0:00:16.3]} 28. Qd7 {[%clk 0:00:34.3]} 28... Qa6
{[%clk 0:00:14.9]} 29. Rb7 {[%clk 0:00:34.6]} 29... Rg8 {[%clk 0:00:16]} 30. a5
{[%clk 0:00:33.5]} 30... Bf8 {[%clk 0:00:15.4]} 31. Rb6 {[%clk 0:00:34]} 31...
Rxb6 {[%clk 0:00:16.9]} 32. Nxb6 {[%clk 0:00:34.9]} 32... Qe2 {[%clk 0:00:18.8]}
33. Qd5 {[%clk 0:00:34]} 33... Bb4 {[%clk 0:00:19.5]} 34. a6 {[%clk 0:00:33.6]}
34... Be1 {[%clk 0:00:21]} 35. a7 {[%clk 0:00:32.7]} 35... Qe3 {[%clk
0:00:22.5]} 36. Qxg8+ {[%clk 0:00:26.9]} 36... Kxg8 {[%clk 0:00:22.4]} 37. a8=Q+
{[%clk 0:00:28.5]} 37... Kf7 {[%clk 0:00:24.3]} 38. Qd5+ {[%clk 0:00:26.3]}
38... Kg6 {[%clk 0:00:26.2]} 39. Qe6+ {[%clk 0:00:27.2]} 39... Kh5 {[%clk
0:00:26.2]} 40. Qxe5+ {[%clk 0:00:27.4]} 40... Kh6 {[%clk 0:00:26.7]} 41. Qf4+
{[%clk 0:00:28.3]} 1-0

[Event "*** MasterClass Titled Tuesday Blitz"]
[Site "Chess.com"]
[Date "2017.09.05"]
[Round "2"]
[White "Chess64Surfer"]
[Black "Hafez_Bakr"]
[Result "0-1"]
[WhiteElo "1990"]
[BlackElo "1870"]
[TimeControl "180+2"]
[EndTime "13:22:56 PDT"]
[Termination "Hafez_Bakr won on time"]

1. c4 {[%clk 0:03:01.9]} 1... f5 {[%clk 0:02:57.6]} 2. g3 {[%clk 0:03:02.1]}
2... Nf6 {[%clk 0:02:57.3]} 3. Bg2 {[%clk 0:03:02.4]} 3... d6 {[%clk 0:02:57.8]}
4. Nc3 {[%clk 0:02:59.1]} 4... e5 {[%clk 0:02:57.9]} 5. d3 {[%clk 0:02:59.8]}
5... c6 {[%clk 0:02:58.9]} 6. e4 {[%clk 0:02:59.2]} 6... Be7 {[%clk 0:02:56.9]}
7. Nge2 {[%clk 0:02:58.9]} 7... O-O {[%clk 0:02:57.1]} 8. O-O {[%clk 0:02:59.4]}
8... fxe4 {[%clk 0:02:56.3]} 9. dxe4 {[%clk 0:02:59]} 9... Kh8 {[%clk
0:02:54.8]} 10. h3 {[%clk 0:02:56.4]} 10... Be6 {[%clk 0:02:55.4]} 11. b3 {[%clk
0:02:56.4]} 11... Qd7 {[%clk 0:02:49.8]} 12. Kh2 {[%clk 0:02:56.7]} 12... Na6
{[%clk 0:02:48]} 13. Be3 {[%clk 0:02:56.3]} 13... b6 {[%clk 0:02:46.9]} 14. Qd2
{[%clk 0:02:46.8]} 14... Rad8 {[%clk 0:02:45.9]} 15. Rad1 {[%clk 0:02:43.7]}
15... Nc7 {[%clk 0:02:46.2]} 16. f4 {[%clk 0:02:42.4]} 16... exf4 {[%clk
0:02:39]} 17. Nxf4 {[%clk 0:02:40.5]} 17... Bf7 {[%clk 0:02:34]} 18. Bd4 {[%clk
0:01:58.8]} 18... Ne6 {[%clk 0:02:33.6]} 19. Be3 {[%clk 0:01:48]} 19... Qc7
{[%clk 0:02:28.6]} 20. Qe2 {[%clk 0:01:39.4]} 20... Rfe8 {[%clk 0:02:17.9]} 21.
Rd2 {[%clk 0:01:35]} 21... Bf8 {[%clk 0:02:15.5]} 22. Rfd1 {[%clk 0:01:32.6]}
22... Ng5 {[%clk 0:02:15.1]} 23. Ng6+ {[%clk 0:01:10.2]} 23... Bxg6 {[%clk
0:02:07.7]} 24. Bxg5 {[%clk 0:01:10.6]} 24... Rd7 {[%clk 0:02:02.4]} 25. Bxf6
{[%clk 0:01:01.6]} 25... gxf6 {[%clk 0:02:02.3]} 26. Qf2 {[%clk 0:01:00.2]}
26... Bg7 {[%clk 0:01:58.8]} 27. Ne2 {[%clk 0:00:58.6]} 27... Rf8 {[%clk
0:01:49.8]} 28. Nf4 {[%clk 0:00:57.8]} 28... Bf7 {[%clk 0:01:49.4]} 29. Qe3
{[%clk 0:00:50.7]} 29... Qd8 {[%clk 0:01:44.2]} 30. Qc3 {[%clk 0:00:46.8]} 30...
Qe7 {[%clk 0:01:44.6]} 31. Qe3 {[%clk 0:00:43.7]} 31... f5 {[%clk 0:01:39.1]}
32. Qe2 {[%clk 0:00:34.7]} 32... Rdd8 {[%clk 0:01:32.9]} 33. exf5 {[%clk
0:00:33.3]} 33... Qg5 {[%clk 0:01:30.8]} 34. Rxd6 {[%clk 0:00:26.8]} 34... Rxd6
{[%clk 0:01:31]} 35. Rxd6 {[%clk 0:00:27.2]} 35... Qxf5 {[%clk 0:01:31.7]} 36.
Qe7 {[%clk 0:00:20.7]} 36... Re8 {[%clk 0:01:27.8]} 37. Qxa7 {[%clk 0:00:19.6]}
37... Be5 {[%clk 0:01:25.8]} 38. Rd7 {[%clk 0:00:18.6]} 38... Rf8 {[%clk
0:01:25]} 39. Ne2 {[%clk 0:00:13.4]} 39... c5 {[%clk 0:01:20.2]} 40. Ng1 {[%clk
0:00:10]} 40... Qf2 {[%clk 0:01:18.8]} 41. Nf3 {[%clk 0:00:04.3]} 41... Bxg3+
{[%clk 0:01:15]} 42. Kh1 {[%clk 0:00:05.1]} 42... Qe3 {[%clk 0:01:10.1]} 43. Re7
{[%clk 0:00:05.3]} 43... Qc1+ {[%clk 0:01:09.4]} 44. Ng1 {[%clk 0:00:06.1]}
44... Bf2 {[%clk 0:01:09.1]} 0-1

[Event "*** MasterClass Titled Tuesday Blitz"]
[Site "Chess.com"]
[Date "2017.09.05"]
[Round "2"]
[White "Oneofmyturns"]
[Black "Tarlev_Konstantin"]
[Result "0-1"]
[WhiteElo "2464"]
[BlackElo "2645"]
[TimeControl "180+2"]
[EndTime "13:22:58 PDT"]
[Termination "Tarlev_Konstantin won by resignation"]

1. d4 {[%clk 0:03:01.9]} 1... Nf6 {[%clk 0:02:59.8]} 2. c4 {[%clk 0:03:02.6]}
2... e6 {[%clk 0:03:01.2]} 3. Nc3 {[%clk 0:03:02.5]} 3... Bb4 {[%clk 0:03:01.7]}
4. Qc2 {[%clk 0:03:04.1]} 4... O-O {[%clk 0:02:58.9]} 5. Nf3 {[%clk 0:03:04.7]}
5... b6 {[%clk 0:02:51.5]} 6. e4 {[%clk 0:03:02.1]} 6... Bxc3+ {[%clk 0:02:45]}
7. bxc3 {[%clk 0:03:04]} 7... d6 {[%clk 0:02:46.3]} 8. Bd3 {[%clk 0:03:03.6]}
8... h6 {[%clk 0:02:41.1]} 9. O-O {[%clk 0:02:52.7]} 9... Bb7 {[%clk 0:02:36.8]}
10. Re1 {[%clk 0:02:52.3]} 10... Nfd7 {[%clk 0:02:31.9]} 11. Be3 {[%clk
0:02:48.9]} 11... e5 {[%clk 0:02:32.5]} 12. Nd2 {[%clk 0:02:46]} 12... Nc6
{[%clk 0:02:33.3]} 13. Qb2 {[%clk 0:02:45.5]} 13... Qe7 {[%clk 0:02:26.1]} 14.
f4 {[%clk 0:02:41.5]} 14... exf4 {[%clk 0:02:16.6]} 15. Bxf4 {[%clk 0:02:43.4]}
15... Rae8 {[%clk 0:02:12.3]} 16. Re2 {[%clk 0:02:44.5]} 16... Nd8 {[%clk
0:02:08.1]} 17. Rf1 {[%clk 0:02:43.3]} 17... Ne6 {[%clk 0:02:09.2]} 18. Bg3
{[%clk 0:02:29.6]} 18... Nf6 {[%clk 0:02:08.6]} 19. Bh4 {[%clk 0:01:49.2]} 19...
Ng5 {[%clk 0:02:08.7]} 20. Qc2 {[%clk 0:01:45.4]} 20... Nh5 {[%clk 0:02:04.5]}
21. Ref2 {[%clk 0:01:19.2]} 21... Nh3+ {[%clk 0:01:58.8]} 22. gxh3 {[%clk
0:01:20.5]} 22... Qxh4 {[%clk 0:02:00.4]} 23. Rf3 {[%clk 0:01:10]} 23... f5
{[%clk 0:01:59.5]} 24. Rxf5 {[%clk 0:01:07.7]} 24... Rxf5 {[%clk 0:01:59.6]} 25.
Rxf5 {[%clk 0:01:09.6]} 25... Nf4 {[%clk 0:01:30.6]} 26. Bf1 {[%clk 0:01:02.4]}
26... Rxe4 {[%clk 0:01:25.3]} 27. Nxe4 {[%clk 0:00:51.1]} 27... Bxe4 {[%clk
0:01:26]} 28. Rxf4 {[%clk 0:00:34.6]} 28... Qxf4 {[%clk 0:01:22.4]} 29. Qe2
{[%clk 0:00:31.3]} 29... c5 {[%clk 0:01:20]} 30. dxc5 {[%clk 0:00:30.4]} 30...
dxc5 {[%clk 0:01:19.2]} 31. Qf2 {[%clk 0:00:20.3]} 31... Qg5+ {[%clk 0:01:10.5]}
32. Qg3 {[%clk 0:00:21.3]} 32... Qc1 {[%clk 0:01:00]} 33. a3 {[%clk 0:00:17.8]}
33... Qxa3 {[%clk 0:00:56.3]} 34. Qe5 {[%clk 0:00:18.9]} 34... Bg6 {[%clk
0:00:54.2]} 35. Bg2 {[%clk 0:00:20.3]} 35... Qa1+ {[%clk 0:00:53.3]} 36. Kf2
{[%clk 0:00:21.5]} 36... Qb1 {[%clk 0:00:44.7]} 37. Bd5+ {[%clk 0:00:22.1]}
37... Kh7 {[%clk 0:00:45.9]} 38. h4 {[%clk 0:00:22.3]} 38... Qf5+ {[%clk
0:00:46.5]} 39. Qxf5 {[%clk 0:00:21.6]} 39... Bxf5 {[%clk 0:00:48]} 40. Bc6
{[%clk 0:00:23.2]} 40... Kg6 {[%clk 0:00:48.6]} 41. Bb5 {[%clk 0:00:24.5]} 41...
Kf6 {[%clk 0:00:50.1]} 42. Kg3 {[%clk 0:00:25.9]} 42... Ke5 {[%clk 0:00:51.3]}
43. Kf3 {[%clk 0:00:27.5]} 43... Be6 {[%clk 0:00:47.7]} 44. Ke3 {[%clk
0:00:28.7]} 44... Bc8 {[%clk 0:00:48.8]} 45. Bc6 {[%clk 0:00:29.5]} 45... a6
{[%clk 0:00:49.6]} 46. Be8 {[%clk 0:00:29.5]} 46... a5 {[%clk 0:00:49.6]} 47.
Bb5 {[%clk 0:00:30.2]} 47... Kd6 {[%clk 0:00:46.9]} 48. Kf4 {[%clk 0:00:30.8]}
48... Bd7 {[%clk 0:00:48.4]} 0-1

[Event "*** MasterClass Titled Tuesday Blitz"]
[Site "Chess.com"]
[Date "2017.09.05"]
[Round "2"]
[White "ViIIagra"]
[Black "DrVitman"]
[Result "1/2-1/2"]
[WhiteElo "2670"]
[BlackElo "2498"]
[TimeControl "180+2"]
[EndTime "13:22:59 PDT"]
[Termination "Game drawn by agreement"]

1. e4 {[%clk 0:03:01.9]} 1... c5 {[%clk 0:02:59.8]} 2. Nf3 {[%clk 0:03:02.6]}
2... Nc6 {[%clk 0:03:01]} 3. Bb5 {[%clk 0:03:03.4]} 3... Nf6 {[%clk 0:03:00.4]}
4. Nc3 {[%clk 0:03:04]} 4... e5 {[%clk 0:03:00.2]} 5. d3 {[%clk 0:03:00.6]} 5...
d6 {[%clk 0:03:00.8]} 6. Bg5 {[%clk 0:02:57.3]} 6... Bd7 {[%clk 0:02:58.4]} 7.
Bc4 {[%clk 0:02:54.6]} 7... Be7 {[%clk 0:02:58.6]} 8. Bxf6 {[%clk 0:02:53.8]}
8... Bxf6 {[%clk 0:02:59.1]} 9. O-O {[%clk 0:02:55.2]} 9... Ne7 {[%clk
0:02:56.6]} 10. Nd5 {[%clk 0:02:52.3]} 10... Nxd5 {[%clk 0:02:56.6]} 11. Bxd5
{[%clk 0:02:54.2]} 11... Rb8 {[%clk 0:02:54.8]} 12. a4 {[%clk 0:02:36.8]} 12...
O-O {[%clk 0:02:55]} 13. Nd2 {[%clk 0:02:37.6]} 13... b6 {[%clk 0:02:50.8]} 14.
Nc4 {[%clk 0:02:36.1]} 14... Qe7 {[%clk 0:02:50.9]} 15. f4 {[%clk 0:01:57.1]}
15... exf4 {[%clk 0:02:50.8]} 16. Rxf4 {[%clk 0:01:59]} 16... Bxa4 {[%clk
0:02:35.6]} 17. Qf3 {[%clk 0:01:07.2]} 17... Bb5 {[%clk 0:02:16.6]} 18. Rf1
{[%clk 0:01:06.8]} 18... Bxc4 {[%clk 0:02:06.5]} 19. dxc4 {[%clk 0:01:08.7]}
19... Bxb2 {[%clk 0:02:02]} 20. Rxf7 {[%clk 0:01:04.7]} 20... Rxf7 {[%clk
0:02:00.5]} 21. Qxf7+ {[%clk 0:01:05.4]} 21... Qxf7 {[%clk 0:02:01]} 22. Rxf7
{[%clk 0:01:07.3]} 22... Bd4+ {[%clk 0:01:58.5]} 23. Kf1 {[%clk 0:00:57.3]}
23... Kh8 {[%clk 0:01:49.8]} 24. Rxa7 {[%clk 0:00:57.4]} 24... Rf8+ {[%clk
0:01:48.6]} 25. Ke1 {[%clk 0:00:55.7]} 25... g6 {[%clk 0:01:42.9]} 26. g4 {[%clk
0:00:33.6]} 26... Be5 {[%clk 0:01:31.6]} 27. h3 {[%clk 0:00:27.5]} 27... Bg3+
{[%clk 0:01:30.2]} 28. Ke2 {[%clk 0:00:28.4]} 28... g5 {[%clk 0:01:19.4]} 29.
Be6 {[%clk 0:00:23.9]} 29... Rf2+ {[%clk 0:01:15.5]} 30. Kd3 {[%clk 0:00:24.6]}
30... Rf3+ {[%clk 0:01:14.1]} 31. Ke2 {[%clk 0:00:25.9]} 31... Rf2+ {[%clk
0:01:12.7]} 32. Kd3 {[%clk 0:00:26.6]} 32... Be5 {[%clk 0:01:07.1]} 33. Ra8+
{[%clk 0:00:24.3]} 33... Kg7 {[%clk 0:01:05.9]} 34. Rg8+ {[%clk 0:00:25.9]}
34... Kh6 {[%clk 0:00:59.7]} 35. Rb8 {[%clk 0:00:24.9]} 35... Kg6 {[%clk
0:00:43.8]} 36. Bf5+ {[%clk 0:00:23.6]} 36... Kf6 {[%clk 0:00:42.3]} 37. Bxh7
{[%clk 0:00:23.4]} 37... Rf3+ {[%clk 0:00:42.1]} 38. Ke2 {[%clk 0:00:24.6]}
38... Rxh3 {[%clk 0:00:43.1]} 39. Bf5 {[%clk 0:00:26]} 39... Bf4 {[%clk
0:00:42.2]} 40. Rxb6 {[%clk 0:00:25.1]} 40... Ke5 {[%clk 0:00:42.2]} 41. Rb3
{[%clk 0:00:23.9]} 41... Rh2+ {[%clk 0:00:41.2]} 42. Kd3 {[%clk 0:00:23.8]}
42... Rh3+ {[%clk 0:00:37.8]} 43. Ke2 {[%clk 0:00:25.2]} 43... Rxb3 {[%clk
0:00:37.6]} 44. cxb3 {[%clk 0:00:26.1]} 44... Kd4 {[%clk 0:00:39.1]} 1/2-1/2

[Event "*** MasterClass Titled Tuesday Blitz"]
[Site "Chess.com"]
[Date "2017.09.05"]
[Round "2"]
[White "Alex_Molchanov"]
[Black "ChadaevNikolay"]
[Result "0-1"]
[WhiteElo "2502"]
[BlackElo "2706"]
[TimeControl "180+2"]
[EndTime "13:23:02 PDT"]
[Termination "ChadaevNikolay won by resignation"]

1. c4 {[%clk 0:03:01.9]} 1... e5 {[%clk 0:03:00.3]} 2. g3 {[%clk 0:03:03.1]}
2... Nf6 {[%clk 0:02:54.9]} 3. Bg2 {[%clk 0:03:03]} 3... c6 {[%clk 0:02:55.5]}
4. d4 {[%clk 0:03:03.4]} 4... Bb4+ {[%clk 0:02:55.1]} 5. Bd2 {[%clk 0:02:56.7]}
5... Bxd2+ {[%clk 0:02:55.1]} 6. Qxd2 {[%clk 0:02:56.6]} 6... d6 {[%clk
0:02:52.6]} 7. Nc3 {[%clk 0:02:53.3]} 7... O-O {[%clk 0:02:52.8]} 8. e3 {[%clk
0:02:51.9]} 8... Re8 {[%clk 0:02:50.9]} 9. Nge2 {[%clk 0:02:52.9]} 9... Qe7
{[%clk 0:02:48.4]} 10. dxe5 {[%clk 0:02:47.9]} 10... dxe5 {[%clk 0:02:48.4]} 11.
O-O {[%clk 0:02:47.2]} 11... Na6 {[%clk 0:02:48.2]} 12. Rad1 {[%clk 0:02:43.1]}
12... Be6 {[%clk 0:02:43.1]} 13. b3 {[%clk 0:02:42.8]} 13... Nc5 {[%clk
0:02:42.4]} 14. Qd6 {[%clk 0:02:38.7]} 14... Qxd6 {[%clk 0:02:41.9]} 15. Rxd6
{[%clk 0:02:40.6]} 15... a5 {[%clk 0:02:43.2]} 16. Rfd1 {[%clk 0:02:11.6]} 16...
Kf8 {[%clk 0:02:43.3]} 17. h3 {[%clk 0:01:48.9]} 17... h6 {[%clk 0:02:42.6]} 18.
f4 {[%clk 0:01:46.3]} 18... exf4 {[%clk 0:02:42.2]} 19. exf4 {[%clk 0:01:40.8]}
19... Bf5 {[%clk 0:02:12.6]} 20. g4 {[%clk 0:01:25.7]} 20... Be4 {[%clk
0:02:10]} 21. Bxe4 {[%clk 0:00:56.3]} 21... Nfxe4 {[%clk 0:02:10.3]} 22. Nxe4
{[%clk 0:00:57.6]} 22... Rxe4 {[%clk 0:01:54.2]} 23. Kf1 {[%clk 0:00:41]} 23...
Rae8 {[%clk 0:01:52.4]} 24. R1d2 {[%clk 0:00:37.8]} 24... Re3 {[%clk 0:01:48.4]}
25. R6d4 {[%clk 0:00:12.1]} 25... Rxh3 {[%clk 0:01:46.4]} 26. Rd8 {[%clk
0:00:13]} 26... Re3 {[%clk 0:01:43.3]} 27. Rxe8+ {[%clk 0:00:13.7]} 27... Rxe8
{[%clk 0:01:43.3]} 28. Ng3 {[%clk 0:00:14.5]} 28... g6 {[%clk 0:01:43.4]} 29.
Kf2 {[%clk 0:00:14.2]} 29... Kg7 {[%clk 0:01:41.2]} 30. Kf3 {[%clk 0:00:15.5]}
30... Re1 {[%clk 0:01:39.6]} 31. f5 {[%clk 0:00:14.5]} 31... Kf6 {[%clk
0:01:29.6]} 32. fxg6 {[%clk 0:00:15.1]} 32... fxg6 {[%clk 0:01:30.3]} 33. Kf2
{[%clk 0:00:16.7]} 33... Re7 {[%clk 0:01:28.9]} 34. Kf3 {[%clk 0:00:17.9]} 34...
Kg5 {[%clk 0:01:29.2]} 35. a3 {[%clk 0:00:15.1]} 35... Nxb3 {[%clk 0:01:27.2]}
36. Rd6 {[%clk 0:00:15.8]} 36... Nc5 {[%clk 0:01:26.5]} 37. Rd8 {[%clk
0:00:14.2]} 37... Rf7+ {[%clk 0:01:27.1]} 38. Kg2 {[%clk 0:00:15.5]} 38... Kxg4
{[%clk 0:01:27.1]} 39. Re8 {[%clk 0:00:15.6]} 39... h5 {[%clk 0:01:25.6]} 40.
Re5 {[%clk 0:00:15.7]} 40... Rf2+ {[%clk 0:01:26.4]} 41. Kg1 {[%clk 0:00:15.5]}
41... Kxg3 {[%clk 0:01:23.4]} 42. Rxc5 {[%clk 0:00:16.1]} 42... Ra2 {[%clk
0:01:21.4]} 43. Rg5+ {[%clk 0:00:15.3]} 43... Kf4 {[%clk 0:01:20.6]} 44. Rxg6
{[%clk 0:00:17.2]} 44... Rxa3 {[%clk 0:01:21.2]} 45. Rg7 {[%clk 0:00:17.6]}
45... b5 {[%clk 0:01:21.3]} 46. Rc7 {[%clk 0:00:18.1]} 46... bxc4 {[%clk
0:01:21.5]} 47. Rxc6 {[%clk 0:00:19.4]} 47... c3 {[%clk 0:01:19.6]} 48. Kg2
{[%clk 0:00:19.3]} 48... Ke3 {[%clk 0:01:18.2]} 49. Kg3 {[%clk 0:00:19.2]} 49...
Kd2 {[%clk 0:01:19.2]} 50. Re6 {[%clk 0:00:20]} 50... c2+ {[%clk 0:01:19.3]} 0-1